bitfinex/quotes_ETHUSD_20230113
["timestamp","ask_amount","ask_price","bid_price","bid_amount"]
[1673625991479,0.00071426,1418.4,1418.3,38.36508074]
[1673625991745,0.00071426,1418.4,1418.3,36.26123641]
[1673625992376,0.00071426,1418.4,1418.3,37.30829292]
[1673625992589,0.00071426,1418.4,1418.3,37.30629292]
[1673625992758,0.00071426,1418.4,1418.3,37.30829292]
[1673625992982,0.00071426,1418.4,1418.3,36.26123641]
[1673625993328,0.00071426,1418.4,1418.3,34.53817016]
[1673625995296,0.00071426,1418.4,1418.3,34.53617016]
[1673625995510,0.00071426,1418.4,1418.3,33.49114869]
[1673625996104,0.00071426,1418.4,1418.3,34.53817016]
[1673625996991,0.00071426,1418.4,1418.3,33.49114869]
[1673625997996,0.00071426,1418.4,1418.3,34.53817016]
[1673625999514,0.00071426,1418.4,1418.3,32.30914869]
[1673625999734,0.00071426,1418.4,1418.3,32.29573121]
[1673626001409,0.00071426,1418.4,1418.3,31.01161646]
[1673626001623,1.46671426,1418.4,1418.3,8.72459819]
[1673626001929,1.46671426,1418.4,1418.3,7.86133272]
[1673626002375,0.00071426,1418.4,1418.3,7.86133272]
[1673626002510,7.05090426,1418.4,1418.3,7.86133272]
[1673626002726,0.03271426,1418.4,1418.3,7.86133272]
[1673626002935,0.03271426,1418.4,1418.3,15.81735599]
[1673626002936,0.00071426,1418.4,1418.3,15.81735599]
[1673626003183,0.00071426,1418.4,1418.3,22.86804599]
[1673626003350,0.00071426,1418.4,1418.3,15.81735599]
[1673626003887,0.00071426,1418.4,1418.3,26.17260065]
[1673626004110,0.00071426,1418.4,1418.3,23.67260065]
[1673626004433,0.00071426,1418.4,1418.3,16.62191065]
[1673626004627,0.00071426,1418.4,1418.3,15.43291065]
[1673626006083,0.00071426,1418.4,1418.3,17.93291065]
[1673626006298,0.00071426,1418.4,1418.3,15.43291065]
[1673626006538,0.00071426,1418.4,1418.3,22.48360065]
[1673626007074,0.00071426,1418.4,1418.3,15.43291065]
[1673626007501,0.00071426,1418.4,1418.3,8.38222065]
[1673626007708,0.00071426,1418.4,1418.3,6.67233272]
[1673626008290,0.00071426,1418.4,1418.3,7.47757679]
[1673626008599,0.00071426,1418.4,1418.3,14.52826679]
[1673626008815,0.00071426,1418.4,1418.3,6.67233272]
[1673626009232,1.46671426,1418.4,1418.3,6.67233272]
[1673626009441,1.46671426,1418.4,1418.3,3.67233272]
[1673626009707,1.46671426,1418.4,1418.3,3.60633272]
[1673626010436,22.61728426,1418.4,1418.2,0.066]
[1673626010604,22.61728426,1418.4,1418.0,1.11302147]
[1673626010605,23.83528426,1418.4,1418.0,1.11302147]
[1673626010811,23.42076839,1418.4,1418.1,0.80611332]
[1673626011216,1.5,1418.3,1418.0,4.71935419]
[1673626011421,0.03271426,1418.4,1418.1,0.80605289]
[1673626011642,7.28096426,1418.4,1418.1,0.80605289]
[1673626011957,14.36321426,1418.4,1418.1,0.80605289]
[1673626012426,21.41346426,1418.4,1418.1,0.80605289]
[1673626013050,14.36321426,1418.4,1418.1,0.80605289]
[1673626013308,21.41346426,1418.4,1418.1,0.80605289]
[1673626014252,21.41346426,1418.4,1418.1,4.41238561]
[1673626014487,21.18346426,1418.4,1418.1,3.60633272]
[1673626016991,7.08296426,1418.4,1418.2,3.60633272]
[1673626017183,14.13315426,1418.4,1418.2,3.60633272]
[1673626017359,7.08290426,1418.4,1418.2,3.60633272]
[1673626017782,0.03271426,1418.4,1418.2,3.60633272]
[1673626018041,0.00071426,1418.4,1418.3,2.5]
[1673626018464,7.05090426,1418.4,1418.2,3.67233272]
[1673626018782,7.08290426,1418.4,1418.2,3.60633272]
[1673626019004,0.03271426,1418.4,1418.2,3.60633272]
[1673626019298,0.00071426,1418.4,1418.3,2.5]
[1673626019515,0.00071426,1418.4,1418.2,3.67233272]
[1673626019516,7.05090426,1418.4,1418.2,3.67233272]
[1673626019674,7.08292426,1418.4,1418.2,3.60633272]
[1673626020334,14.13313426,1418.4,1418.2,3.60633272]
[1673626020769,21.18334426,1418.4,1418.1,0.066]
[1673626020935,21.18334426,1418.4,1418.0,8.09920147]
[1673626021146,14.13313426,1418.4,1418.1,0.80587699]
[1673626021358,14.13313426,1418.4,1418.1,4.41220971]
[1673626021649,14.13313426,1418.4,1418.2,3.60633272]
[1673626021931,14.13309426,1418.4,1418.2,3.60633272]
[1673626022145,21.18328426,1418.4,1418.2,3.60633272]
[1673626023354,21.18328426,1418.4,1418.2,3.60331893]
[1673626023940,14.13309426,1418.4,1418.2,3.97025082]
[1673626024109,0.03271426,1418.4,1418.3,3.60633272]
[1673626024303,0.00071426,1418.4,1418.3,3.50633272]
[1673626024514,0.00071426,1418.4,1418.3,7.81049318]
[1673626024873,0.00071426,1418.4,1418.3,7.87649318]
[1673626025247,0.00071426,1418.4,1418.3,14.92718318]
[1673626025457,0.00071426,1418.4,1418.3,7.87649318]
[1673626026011,0.00071426,1418.4,1418.3,5.37649318]
[1673626026259,7.05090426,1418.4,1418.3,5.37649318]
[1673626026440,0.03271426,1418.4,1418.3,3.57233272]
[1673626026611,7.05090426,1418.4,1418.3,3.50633272]
[1673626026820,21.18328426,1418.4,1418.2,0.33293189]
[1673626027047,21.18328426,1418.4,1418.2,3.87326461]
[1673626028393,21.18328426,1418.4,1418.3,0.38732646]
[1673626028637,21.18328426,1418.4,1418.2,3.87326461]
[1673626030094,21.18328426,1418.4,1418.2,3.77326461]
[1673626032810,21.18328426,1418.4,1418.2,3.67326461]
[1673626034002,0.03271426,1418.4,1418.3,3.60633272]
[1673626034216,0.00071426,1418.4,1418.3,25.41991069]
[1673626034437,0.00071426,1418.4,1418.3,27.06399841]
[1673626034611,0.00071426,1418.4,1418.3,20.01330841]
[1673626034974,0.00071426,1418.4,1418.3,22.51330841]
[1673626035664,0.00071426,1418.4,1418.3,29.56399841]
[1673626035874,0.00071426,1418.4,1418.3,35.56766694]
[1673626036085,0.79638957,1418.5,1418.4,3.98928574]
[1673626036333,0.79638957,1418.5,1418.4,27.35053964]
[1673626036552,0.79638957,1418.5,1418.4,45.33122184]
[1673626036744,0.79638957,1418.5,1418.4,46.03592582]
[1673626037082,0.79638957,1418.5,1418.4,37.22592698]
[1673626037236,0.79638957,1418.5,1418.4,34.46483926]
[1673626038407,0.79638957,1418.5,1418.4,16.81571979]
[1673626038619,7.84608957,1418.5,1418.4,11.4464685]
[1673626038832,0.82838957,1418.5,1418.4,11.4464685]
[1673626039022,0.79638957,1418.5,1418.4,11.4464685]
[1673626040514,0.79638957,1418.5,1418.4,10.2654685]
[1673626042019,0.79638957,1418.5,1418.4,11.31420797]
[1673626042178,0.79638957,1418.5,1418.4,20.43023281]
[1673626042594,0.79638957,1418.5,1418.4,22.76402321]
[1673626042798,0.79638957,1418.5,1418.4,21.71528374]
[1673626043042,0.79638957,1418.5,1418.4,22.76402321]
[1673626043271,0.79638957,1418.5,1418.4,21.71528374]
[1673626043477,0.79638957,1418.5,1418.4,20.43023281]
[1673626043874,0.79638957,1418.5,1418.4,13.38004281]
[1673626044091,14.89578957,1418.5,1418.4,10.70204281]
[1673626044274,14.92778957,1418.5,1418.4,6.67361846]
[1673626044596,7.87808957,1418.5,1418.4,6.67361846]
[1673626044808,0.82838957,1418.5,1418.4,6.67361846]
[1673626045192,0.79638957,1418.5,1418.4,6.67361846]
[1673626045337,7.84608957,1418.5,1418.4,6.67361846]
[1673626045535,7.87808957,1418.5,1418.4,6.67361846]
[1673626046095,0.82838957,1418.5,1418.4,6.67361846]
[1673626046444,0.79638957,1418.5,1418.4,6.67361846]
[1673626047577,0.79638957,1418.5,1418.4,0.06728574]
[1673626047767,25.4969737,1418.5,1418.4,0.00128574]
[1673626048117,28.15586047,1418.5,1418.4,0.00128574]
[1673626048419,42.61642789,1418.5,1418.4,0.00128574]
[1673626048793,2.5,1418.4,1417.9,1.04873947]
[1673626049037,28.20476,1418.2,1417.9,3.60633272]
[1673626049226,28.23676,1418.2,1417.9,3.60633272]
[1673626053595,0.529,1418.1,1417.8,0.066]
[1673626053816,0.529,1418.1,1417.6,3.19886876]
[1673626053817,28.20872,1418.0,1417.6,3.19886876]
[1673626054130,29.66272,1418.0,1417.6,3.73920148]
[1673626054431,21.15954,1417.8,1417.6,3.73920148]
[1673626054739,21.19154,1417.8,1417.6,3.73920148]
[1673626055810,21.19154,1417.8,1417.6,0.13286876]
[1673626056174,14.13836,1417.8,1417.6,3.73920148]
[1673626057705,21.19154,1417.8,1417.6,3.73920148]
[1673626058622,14.13836,1417.8,1417.6,3.73920148]
[1673626058851,7.08518,1417.8,1417.6,3.73920148]
[1673626059085,0.032,1417.8,1417.6,4.13300876]
[1673626059365,7.08487,1417.9,1417.6,4.13300876]
[1673626059980,7.08487,1417.9,1417.6,11.18717876]
[1673626060188,7.08487,1417.9,1417.6,4.19900876]
[1673626060405,14.13779,1417.9,1417.6,4.13300876]
[1673626060567,7.08487,1417.9,1417.6,4.13300876]
[1673626060777,7.61378,1417.9,1417.6,4.13300876]
[1673626061017,0.5611,1417.9,1417.7,4.0196336]
[1673626061229,7.0527,1417.9,1417.7,4.0196336]
[1673626061438,0.032,1417.9,1417.8,3.60633272]
[1673626061649,0.032,1418.0,1417.8,25.94787272]
[1673626061879,0.87054419,1418.1,1417.9,27.35915999]
[1673626062064,0.83854419,1418.1,1417.9,13.31979999]
[1673626062283,0.83854419,1418.1,1417.9,3.67233272]
[1673626062486,14.94217419,1418.1,1417.9,3.60633272]
[1673626062700,22.02612419,1418.1,1417.9,3.60633272]
[1673626062874,7.92222419,1418.1,1417.9,3.60633272]
[1673626063084,0.87054419,1418.1,1417.9,11.02608599]
[1673626063353,0.83854419,1418.1,1418.0,3.60633272]
[1673626063657,0.84054419,1418.1,1418.0,3.60633272]
[1673626063820,0.83854419,1418.1,1418.0,3.60633272]
[1673626066395,0.83854419,1418.1,1418.0,25.95187272]
[1673626066396,1.63854419,1418.1,1418.0,25.95187272]
[1673626066616,1.63854419,1418.1,1418.0,29.61162132]
[1673626066775,1.63854419,1418.1,1418.0,34.70101732]
[1673626067183,1.63854419,1418.1,1418.0,33.34895404]
[1673626067651,1.63854419,1418.1,1418.0,34.24738389]
[1673626068050,1.63854419,1418.1,1418.0,35.57028242]
[1673626068261,1.63854419,1418.1,1418.0,34.24738389]
[1673626068475,1.63854419,1418.1,1418.0,13.54551117]
[1673626068476,15.74190419,1418.1,1418.0,13.54551117]
[1673626068666,1.67054419,1418.1,1418.0,9.95176257]
[1673626068882,1.63854419,1418.1,1418.0,9.95176257]
[1673626069186,1.63854419,1418.1,1418.0,9.05333272]
[1673626069523,1.63854419,1418.1,1418.0,9.00533272]
[1673626070485,1.63854419,1418.1,1418.0,8.81933272]
[1673626070701,1.63854419,1418.1,1418.0,8.54798932]
[1673626070912,22.79358419,1418.1,1418.0,6.43833272]
[1673626071070,22.82558419,1418.1,1418.0,3.67233272]
[1673626071279,22.82558419,1418.1,1418.0,3.60633272]
[1673626072276,22.82558419,1418.1,1417.9,0.066]
[1673626072506,22.82558419,1418.1,1417.9,3.60633272]
[1673626074586,22.82558419,1418.1,1417.8,0.066]
[1673626074907,23.35458419,1418.1,1417.6,3.19886876]
[1673626075066,23.35458419,1418.1,1417.7,3.60633272]
[1673626076429,16.30290419,1418.1,1417.7,3.60633272]
[1673626076801,9.25122419,1418.1,1417.8,3.60633272]
[1673626076990,16.30290419,1418.1,1417.8,6.08304799]
[1673626077204,16.30290419,1418.1,1417.8,6.14904799]
[1673626077372,16.30290419,1418.1,1417.8,0.066]
[1673626077373,23.35458419,1418.1,1417.8,0.066]
[1673626077591,23.35458419,1418.1,1417.6,1.38786876]
[1673626077838,23.35458419,1418.1,1417.7,3.60633272]
[1673626078824,23.35458419,1418.1,1417.6,1.52409115]
[1673626079129,21.15834,1417.9,1417.6,6.73920148]
[1673626079355,21.19034,1417.9,1417.6,6.80520148]
[1673626081966,21.19034,1417.9,1417.6,3.80520148]
[1673626082183,21.19034,1417.9,1417.6,3.73920148]
[1673626083855,21.71944,1417.9,1417.6,3.73920148]
[1673626084068,1.183,1417.8,1417.6,0.13286876]
[1673626084299,28.21468,1417.7,1417.6,0.03286876]
[1673626084454,28.24668,1417.7,1417.6,0.03286876]
[1673626085139,2.5,1417.6,1417.5,0.13287136]
[1673626085310,2.5,1417.6,1417.2,0.15312254]
[1673626085311,2.5,1417.5,1417.2,0.15312254]
[1673626085519,21.16698,1417.3,1417.2,0.15312254]
[1673626085747,21.19898,1417.3,1417.2,1.05599033]
[1673626085939,21.19898,1417.3,1417.2,0.15312254]
[1673626086293,1.498,1417.3,1417.2,0.15312254]
[1673626086464,1.466,1417.3,1417.2,0.28862099]
[1673626086682,0.5613,1417.4,1417.2,4.56105855]
[1673626086683,0.5293,1417.4,1417.2,4.56105855]
[1673626086915,7.05521,1417.4,1417.2,3.65945526]
[1673626087081,7.08721,1417.4,1417.2,3.65945526]
[1673626087973,14.14242,1417.4,1417.2,3.65945526]
[1673626088396,21.19763,1417.4,1417.2,0.05312254]
[1673626089923,22.38863,1417.4,1417.2,0.05312254]
[1673626090356,24.35098,1417.3,1417.2,0.05312254]
[1673626093101,25.56898,1417.3,1417.2,2.54e-06]
[1673626093315,34.63048,1417.3,1417.2,2.54e-06]
[1673626093633,33.44448,1417.3,1417.2,2.54e-06]
[1673626093808,33.21448,1417.3,1417.2,2.54e-06]
[1673626094018,10.5815,1417.3,1417.2,3.60633526]
[1673626094228,0.032,1417.3,1417.2,4.10058104]
[1673626094457,22.1181,1417.4,1417.2,4.10058104]
[1673626094648,29.17357,1417.4,1417.2,4.10058104]
[1673626094899,21.19811,1417.4,1417.2,2.54e-06]
[1673626095107,14.67194,1417.4,1417.2,2.54e-06]
[1673626095281,21.19811,1417.4,1417.2,2.54e-06]
[1673626095493,14.14264,1417.4,1417.2,2.54e-06]
[1673626096363,21.19811,1417.4,1417.2,2.54e-06]
[1673626096572,14.14264,1417.4,1417.2,2.54e-06]
[1673626097001,21.19811,1417.4,1417.2,2.54e-06]
[1673626097387,14.14264,1417.4,1417.2,2.54e-06]
[1673626097912,21.19811,1417.4,1417.2,2.54e-06]
[1673626098349,0.032,1417.4,1417.2,3.60633526]
[1673626098561,29.3256,1417.5,1417.3,1.84863353]
[1673626098562,36.41265,1417.5,1417.3,1.84863353]
[1673626098749,14.94186,1417.5,1417.4,3.60633272]
[1673626098958,14.94186,1417.5,1417.3,0.42663353]
[1673626098959,21.99682,1417.5,1417.3,0.42663353]
[1673626099174,21.99682,1417.5,1417.2,2.54e-06]
[1673626099815,2.0,1417.4,1417.2,2.54e-06]
[1673626100041,14.11132,1417.3,1417.2,2.54e-06]
[1673626100215,21.19898,1417.3,1417.2,2.54e-06]
[1673626103933,23.14828,1417.3,1417.1,5.08e-06]
[1673626104109,2.73,1417.2,1417.1,5.08e-06]
[1673626104319,23.89848,1417.2,1417.1,5.08e-06]
[1673626104525,23.93048,1417.2,1417.1,5.08e-06]
[1673626104861,33.81988,1417.2,1417.1,5.08e-06]
[1673626105259,35.01188,1417.2,1417.1,5.08e-06]
[1673626106001,67.49427222,1417.2,1416.8,0.13286876]
[1673626106210,1.18,1417.0,1416.8,0.13286876]
[1673626106465,33.13614,1416.9,1416.8,0.13286876]
[1673626106636,33.16814,1416.9,1416.8,0.13286876]
[1673626106853,32.63864,1416.9,1416.8,0.13286876]
[1673626107081,63.05824,1416.9,1416.8,0.13286876]
[1673626107290,62.82824,1416.9,1416.8,0.13286876]
[1673626108031,64.01424,1416.9,1416.8,0.13286876]
[1673626108254,2.5,1416.8,1416.4,0.13956128]
[1673626108415,14.1175,1416.7,1416.5,3.60633272]
[1673626108627,21.20816,1416.7,1416.5,3.60633272]
[1673626110676,38.66926,1416.9,1416.7,2.76954569]
[1673626110839,43.11872,1416.9,1416.7,2.76954569]
[1673626111562,21.23972,1416.9,1416.7,2.76954569]
[1673626120928,22.95722,1416.9,1416.7,2.76954569]
[1673626121284,23.67445,1416.8,1416.7,2.76954569]
[1673626121440,23.97045,1416.8,1416.7,2.76954569]
[1673626121776,24.49995,1416.8,1416.7,2.76954569]
[1673626122227,23.97045,1416.8,1416.7,2.76954569]
[1673626122387,23.97045,1416.8,1416.7,5.69e-06]
[1673626122599,33.95415,1416.8,1416.7,5.69e-06]
[1673626123384,38.75248272,1416.8,1416.7,5.69e-06]
[1673626123606,43.47398272,1416.8,1416.7,5.69e-06]
[1673626123912,65.50628272,1416.8,1416.7,5.69e-06]
[1673626124106,85.50628272,1416.8,1416.7,5.69e-06]
[1673626128425,79.16995,1416.8,1416.7,5.69e-06]
[1673626128640,78.64045,1416.8,1416.7,5.69e-06]
[1673626129009,79.11995,1416.8,1416.4,0.13956128]
[1673626129215,77.92795,1416.8,1416.4,0.13956128]
[1673626129741,2.5,1416.7,1416.4,0.13956128]
[1673626129951,21.17745,1416.6,1416.4,0.13956128]
[1673626130196,21.24345,1416.6,1416.4,0.13956128]
[1673626130531,21.24345,1416.6,1416.4,0.08956128]
[1673626132173,24.68884812,1416.5,1416.4,0.08956128]
[1673626140355,3.50989812,1416.5,1416.4,0.08956128]
[1673626140617,24.62284812,1416.5,1416.4,0.08956128]
[1673626140790,24.68884812,1416.5,1416.4,0.08956128]
[1673626141194,34.11249812,1416.5,1416.4,0.08956128]
[1673626141405,48.11249812,1416.5,1416.4,0.08956128]
[1673626141663,46.93149812,1416.5,1416.4,0.08956128]
[1673626141982,45.74849812,1416.5,1416.4,0.08956128]
[1673626142159,65.74849812,1416.5,1416.4,0.08956128]
[1673626142573,66.27809812,1416.5,1416.4,0.08956128]
[1673626142809,65.74849812,1416.5,1416.4,0.08956128]
[1673626143559,2.5,1416.4,1416.3,0.1530022]
[1673626143874,23.91045,1416.4,1416.3,0.1530022]
[1673626144086,23.97645,1416.4,1416.3,0.1530022]
[1673626144397,23.97645,1416.4,1416.3,0.1030022]
[1673626144763,33.63375,1416.4,1416.3,0.1030022]
[1673626145194,33.63375,1416.4,1416.3,2.2e-06]
[1673626145537,33.63375,1416.4,1416.0,8.5300689]
[1673626145751,28.24456,1416.2,1416.0,8.5300689]
[1673626145935,28.24456,1416.2,1416.0,0.8743689]
[1673626145936,28.31056,1416.2,1416.0,0.8743689]
[1673626146132,28.31056,1416.2,1416.0,0.8083689]
[1673626146342,3.184,1416.1,1416.0,0.8083689]
[1673626146868,3.184,1416.1,1415.7,0.22678767]
[1673626146869,40.58592,1416.1,1415.7,0.22678767]
[1673626147078,7.06264,1415.9,1415.7,0.16078767]
[1673626147328,21.25392,1415.9,1415.7,0.16078767]
[1673626147603,2.5,1415.8,1415.7,0.16078767]
[1673626147906,14.35628,1415.8,1415.7,0.16078767]
[1673626148064,14.42228,1415.8,1415.7,0.16078767]
[1673626148274,16.80028,1415.8,1415.7,7.67e-06]
[1673626148483,17.33018,1415.8,1415.6,0.15926666]
[1673626148739,15.54028,1415.7,1415.6,0.15926666]
[1673626148952,15.60628,1415.7,1415.6,0.15926666]
[1673626149323,2.5,1415.6,1415.2,0.066]
[1673626149545,2.5,1415.2,1414.9,1.11473947]
[1673626149786,14.5302,1415.1,1414.8,1.04873947]
[1673626150006,0.066,1415.1,1414.8,0.99873947]
[1673626150224,35.20037,1415.1,1414.6,0.9043667]
[1673626150379,1.42,1415.0,1414.6,0.8383667]
[1673626150736,7.06738,1415.0,1414.9,0.1713803]
[1673626150971,14.20076,1415.0,1414.9,0.1713803]
[1673626151113,7.36338,1415.0,1414.9,0.1713803]
[1673626151327,14.43051,1415.0,1414.9,0.1713803]
[1673626151793,7.36313,1415.0,1414.9,0.1713803]
[1673626152157,14.43026,1415.0,1414.9,0.1713803]
[1673626152422,16.80526,1415.0,1414.9,0.1713803]
[1673626152592,19.30526,1415.0,1414.9,0.1713803]
[1673626152798,19.83546,1415.0,1414.9,0.1713803]
[1673626153372,19.30526,1415.0,1414.9,0.1713803]
[1673626153942,22.91159272,1415.0,1414.6,0.8383667]
[1673626154188,1.192,1414.7,1414.6,0.8383667]
[1673626154402,29.69652,1414.7,1414.6,0.8383667]
[1673626154625,43.76252,1414.7,1414.6,0.8383667]
[1673626154843,43.76252,1414.7,1414.3,0.0141733]
[1673626155153,0.23,1414.6,1414.3,0.0141733]
[1673626155464,14.13926,1414.5,1414.0,5.28567781]
[1673626155788,14.13926,1414.5,1414.0,6.21601053]
[1673626155789,14.20526,1414.5,1414.0,6.21601053]
[1673626155996,14.20526,1414.5,1414.0,2.60967781]
[1673626156212,7.07068,1414.3,1414.0,2.54367781]
[1673626156360,14.20736,1414.3,1414.0,0.04367781]
[1673626156569,14.20736,1414.3,1414.0,0.47660559]
[1673626156828,7.13668,1414.3,1414.0,0.04367781]
[1673626157338,14.20731,1414.3,1414.0,0.04367781]
[1673626158670,21.27794,1414.3,1414.0,0.04367781]
[1673626158880,19.01633272,1414.2,1414.0,0.04367781]
[1673626159090,33.61335272,1414.1,1414.0,0.04367781]
[1673626159300,39.43270614,1414.1,1413.8,0.2001594]
[1673626159568,16.5,1413.9,1413.3,0.64742]
[1673626159738,14.0,1413.7,1413.3,0.64742]
[1673626160089,14.0,1413.7,1413.3,0.59742]
[1673626160090,4.805,1413.6,1413.3,0.59742]
[1673626160302,4.805,1413.6,1413.3,2.04319867]
[1673626160458,18.9533,1413.6,1413.3,3.36019867]
[1673626160819,4.871,1413.6,1413.3,10.43560867]
[1673626161034,4.805,1413.6,1413.3,0.92619867]
[1673626161243,3.60633272,1413.5,1413.3,0.59742]
[1673626161560,42.83132,1413.4,1413.3,0.59742]
[1673626161717,46.73365272,1413.4,1413.3,1e-05]
[1673626161928,43.38296411,1413.4,1413.3,1e-05]
[1673626162190,1.08244411,1413.4,1413.3,1e-05]
[1673626162404,0.25564411,1413.4,1413.3,1.57184767]
[1673626162615,0.25564411,1413.4,1413.3,7.67818039]
[1673626162921,0.25564411,1413.4,1413.3,7.74418039]
[1673626163077,0.25564411,1413.4,1413.3,10.74418039]
[1673626163297,0.25564411,1413.4,1413.3,4.94818039]
[1673626163514,0.25564411,1413.4,1413.3,3.69018039]
[1673626163756,1.72164411,1413.4,1413.3,0.08384767]
[1673626163973,1.466,1413.4,1413.3,0.08384767]
[1673626164342,7.14103,1413.5,1413.3,0.08384767]
[1673626164554,0.066,1413.5,1413.3,3.69018039]
[1673626164763,19.01989,1413.6,1413.4,0.36901804]
[1673626165180,11.94537,1413.6,1413.4,0.36901804]
[1673626165396,19.01989,1413.6,1413.3,0.08384767]
[1673626165606,4.871,1413.6,1413.4,3.60633272]
[1673626165883,0.8,1413.5,1413.4,3.60633272]
[1673626166075,0.8,1413.5,1413.4,4.79833272]
[1673626166392,23.7922,1414.0,1413.5,2.5]
[1673626166393,0.5906,1414.0,1413.5,2.5]
[1673626166617,0.066,1414.1,1413.6,3.60633272]
[1673626166922,7.07213,1414.0,1413.5,3.62583326]
[1673626167075,14.21034,1414.0,1413.5,7.16616598]
[1673626167442,14.21034,1414.0,1413.5,7.23216598]
[1673626167615,7.13838,1414.0,1413.6,4.32954932]
[1673626167824,0.066,1414.0,1413.6,4.32954932]
[1673626168041,7.66854,1414.1,1413.6,4.32954932]
[1673626168266,0.066,1414.1,1413.7,3.60633272]
[1673626168481,0.5965,1414.2,1413.8,6.46696599]
[1673626168651,7.6019,1414.2,1413.8,4.03296599]
[1673626168857,14.73939,1414.2,1413.8,3.96696599]
[1673626169072,7.6679,1414.2,1413.9,0.3966966]
[1673626169283,7.6679,1414.2,1413.9,6.50302932]
[1673626169544,0.066,1414.2,1413.9,6.56902932]
[1673626169736,20.066,1414.3,1414.0,4.78933272]
[1673626169985,0.066,1414.3,1414.1,0.47893327]
[1673626170200,7.60013,1414.5,1414.1,0.47893327]
[1673626170201,7.0702,1414.4,1414.1,0.47893327]
[1673626170407,7.1362,1414.4,1414.1,0.47893327]
[1673626170614,0.066,1414.4,1414.2,4.79833272]
[1673626170792,27.66561,1414.6,1414.3,0.47983327]
[1673626171008,27.66561,1414.6,1414.3,5.27816599]
[1673626171009,20.066,1414.6,1414.3,5.27816599]
[1673626171269,0.066,1414.6,1414.3,5.34416599]
[1673626171477,0.066,1414.7,1414.3,14.91458599]
[1673626171637,20.5963,1414.8,1414.4,1.4914586]
[1673626171842,7.66449,1414.8,1414.4,1.4914586]
[1673626172806,15.591,1414.7,1414.3,0.54583327]
[1673626173022,21.20859,1414.6,1414.1,0.54493327]
[1673626173231,2.5,1414.5,1414.1,3.60633272]
[1673626173442,3.0304,1414.5,1414.0,3.066]
[1673626173677,30.33883887,1414.4,1413.8,0.066]
[1673626173886,31.99783887,1414.4,1413.8,3.60633272]
[1673626174075,15.814,1414.3,1413.7,0.066]
[1673626174285,2.5,1414.1,1413.5,1.69462999]
[1673626174529,2.5,1414.1,1413.6,3.60633272]
[1673626174686,7.07167,1414.1,1413.6,3.60633272]
[1673626174898,7.13767,1414.1,1413.6,3.60633272]
[1673626175106,7.13766,1414.1,1413.7,0.36063327]
[1673626175322,2.5,1414.0,1413.5,0.14599999]
[1673626175678,21.21848,1413.9,1413.5,0.07999999]
[1673626175869,21.81508,1413.9,1413.5,0.07999999]
[1673626176054,21.28448,1413.9,1413.5,0.07999999]
[1673626177891,0.23,1413.8,1413.5,0.07999999]
[1673626178062,14.2116,1413.9,1413.5,0.07999999]
[1673626178277,7.0732,1413.8,1413.5,0.07999999]
[1673626178653,14.2124,1413.8,1413.5,0.07999999]
[1673626178791,21.2856,1413.8,1413.5,0.07999999]
[1673626178993,21.8163,1413.8,1413.5,0.07999999]
[1673626179432,7.07413,1413.6,1413.5,0.07999999]
[1673626179643,7.14013,1413.6,1413.5,0.07999999]
[1673626180461,1.532,1413.6,1413.5,0.07999999]
[1673626180717,1.466,1413.6,1413.5,0.07999999]
[1673626180939,7.07413,1413.6,1413.5,0.07999999]
[1673626181119,21.28839,1413.6,1413.5,0.07999999]
[1673626181723,14.21426,1413.6,1413.5,0.07999999]
[1673626182472,0.066,1413.6,1413.5,0.07999999]
[1673626182686,7.07397,1413.7,1413.5,0.07999999]
[1673626182897,6.65318946,1413.7,1413.5,0.07999999]
[1673626183114,0.066,1413.7,1413.5,0.07999999]
[1673626183322,14.14731,1413.7,1413.5,0.07999999]
[1673626183558,7.13963,1413.7,1413.5,0.07999999]
[1673626183771,21.28694,1413.7,1413.5,0.07999999]
[1673626184992,14.21326,1413.7,1413.5,0.07999999]
[1673626185204,0.066,1413.7,1413.5,1.05420239]
[1673626185412,7.07368,1413.7,1413.5,1.05420239]
[1673626185658,7.13968,1413.7,1413.5,1.05420239]
[1673626185833,14.21336,1413.7,1413.5,1.05420239]
[1673626186050,21.28704,1413.7,1413.5,1.00420239]
[1673626186254,21.28704,1413.7,1413.5,0.02999999]
[1673626186463,0.066,1413.7,1413.5,3.63633271]
[1673626186713,21.13875,1413.9,1413.6,3.60633272]
[1673626186926,28.2117,1413.9,1413.6,3.60633272]
[1673626187145,28.2117,1413.9,1413.5,0.09599999]
[1673626187358,0.5307,1413.8,1413.5,3.63633271]
[1673626187669,0.5307,1413.8,1413.5,1.8362694]
[1673626187881,7.60392,1413.8,1413.5,1.8362694]
[1673626188101,14.21244,1413.8,1413.5,1.8362694]
[1673626188250,21.28566,1413.8,1413.5,1.8362694]
[1673626188461,21.28566,1413.8,1413.4,9.66202401]
[1673626189092,14.67831,1413.7,1413.4,9.66202401]
[1673626189301,14.74431,1413.7,1413.4,9.66202401]
[1673626189510,21.81828,1413.7,1413.4,9.66202401]
[1673626189720,21.28758,1413.7,1413.4,9.66202401]
[1673626191121,7.13984,1413.7,1413.4,9.66202401]
[1673626191330,0.066,1413.7,1413.4,9.66202401]
[1673626191564,3.60633272,1413.7,1413.4,9.66202401]
[1673626191764,14.14726,1413.7,1413.4,9.66202401]
[1673626191973,0.5307,1413.6,1413.4,9.66202401]
[1673626192191,14.14926,1413.5,1413.4,9.66202401]
[1673626192357,14.21526,1413.5,1413.4,9.66202401]
[1673626192732,21.28989,1413.5,1413.4,7.78981189]
[1673626193035,16.65026,1413.4,1413.3,4.99767148]
[1673626193220,14.97706,1413.4,1413.3,4.99767148]
[1673626193409,14.74706,1413.4,1413.3,4.99767148]
[1673626193818,14.97706,1413.4,1413.3,4.99767148]
[1673626194259,19.97706,1413.4,1413.3,4.99767148]
[1673626194496,23.58339272,1413.4,1413.3,4.99767148]
[1673626194657,5.5968,1413.4,1413.3,4.99767148]
[1673626194863,19.97706,1413.4,1413.3,4.99767148]
[1673626195283,19.44626,1413.4,1413.3,4.99767148]
[1673626195539,12.37113,1413.4,1413.3,4.99767148]
[1673626195756,19.44626,1413.4,1413.3,4.99767148]
[1673626195919,26.52139,1413.4,1413.3,4.99767148]
[1673626196393,31.72372272,1413.4,1413.3,4.99767148]
[1673626196552,32.9592267,1413.4,1413.3,4.99767148]
[1673626196763,29.35289398,1413.4,1413.3,4.99767148]
[1673626196985,47.75689398,1413.4,1413.3,4.99767148]
[1673626197317,32.90193,1413.4,1413.3,4.99767148]
[1673626197489,47.05219,1413.4,1413.3,4.99767148]
[1673626197698,47.05219,1413.4,1413.3,9.99729928]
[1673626197960,50.65852272,1413.4,1413.3,10.06329928]